fUSD/lending_fUSD_20250530
["ID","MTS","AMOUNT","RATE_DAILY","PERIOD"]
[363164948,1748605842511,-665.6,0.00021917,2]
[363164949,1748605842521,-420.0,0.00021917,2]
[363164950,1748605842530,-620.9,0.00021917,2]
[363164951,1748605842540,-4862.61,0.00021917,2]
[363164952,1748605842550,-1334.57,0.00021917,2]
[363164953,1748605842561,-4581.85,0.00021917,2]
[363164954,1748605842570,-831.83,0.00021917,2]
[363164955,1748605842579,-2823.39,0.00021917,2]
[363164956,1748605842589,-724.95,0.00021917,2]
[363164957,1748605842599,-1411.6,0.00021917,2]
[363164958,1748605842609,-651.98,0.00021917,2]
[363164959,1748605842619,-765.54,0.00021917,2]
[363164960,1748605842629,-1594.09,0.00021917,2]
[363164961,1748605842639,-420.0,0.00021917,2]
[363164962,1748605842648,-420.0,0.00021917,2]
[363164963,1748605842659,-1195.46,0.00021917,2]
[363164964,1748605842669,-2065.25,0.00021917,2]
[363164965,1748605842679,-2574.23,0.00021917,2]
[363164966,1748605842688,-420.0,0.00021917,2]
[363164967,1748605842698,-420.0,0.00021917,2]
[363164968,1748605842707,-1025.22,0.00021917,2]
[363164969,1748605842717,-2369.54,0.00021917,2]
[363164970,1748605842727,-1113.01,0.00021917,2]
[363164971,1748605842737,-2831.8,0.00021917,2]
[363164972,1748605842746,-613.49,0.00021917,2]
[363164973,1748605842756,-1068.49,0.00021917,2]
[363164974,1748605842766,-420.0,0.00021917,2]
[363164975,1748605842775,-420.0,0.00021917,2]
[363164976,1748605842784,-420.0,0.00021917,2]
[363164977,1748605842794,-3622.62,0.00021917,2]
[363164978,1748605842804,-435.59,0.00021917,2]
[363164979,1748605842813,-420.0,0.00021917,2]
[363164980,1748605842823,-3121.77,0.00021917,2]
[363164981,1748605842833,-1104.67,0.00021917,2]
[363164982,1748605842843,-2664.09,0.00021917,2]
[363164983,1748605842854,-484.87,0.00021917,2]
[363164984,1748605842864,-467.27,0.00021917,2]
[363164985,1748605842873,-688.21,0.00021917,2]
[363164986,1748605842885,-684.25,0.00021917,2]
[363164987,1748605842895,-420.0,0.00021917,2]
[363164988,1748605842906,-478.64,0.00021917,2]
[363164990,1748605842915,-696.11,0.00021917,2]
[363164991,1748605842924,-958.22,0.00021917,2]
[363164992,1748605842933,-539.47,0.00021917,2]
[363164993,1748605842943,-1852.75,0.00021917,2]
[363164994,1748605842952,-420.0,0.00021917,2]
[363164996,1748605842961,-420.0,0.00021917,2]
[363164998,1748605842971,-651.94,0.00021917,2]
[363164999,1748605842980,-1120.7,0.00021917,2]
[363165000,1748605842990,-2335.9,0.00021917,2]
[363165001,1748605843000,-466.95,0.00021917,2]
[363165002,1748605843009,-506.08782798,0.00021917,2]
[363165003,1748605843018,-711.49,0.00021917,2]
[363165004,1748605843025,-420.0,0.00021917,2]
[363165005,1748605843035,-420.0,0.00021917,2]
[363165006,1748605843045,-645.66,0.00021917,2]
[363165007,1748605843055,-420.0,0.00021917,2]
[363165008,1748605843065,-1424.33,0.00021917,2]
[363165009,1748605843075,-1562.12,0.00021917,2]
[363165010,1748605843085,-420.0,0.00021917,2]
[363165011,1748605843097,-1776.41,0.00021917,2]
[363165012,1748605843107,-420.0,0.00021917,2]
[363165013,1748605843120,-420.0,0.00021917,2]
[363165014,1748605843131,-420.0,0.00021917,2]
[363165015,1748605843141,-751.2,0.00021917,2]
[363165016,1748605843153,-697.5,0.00021917,2]
[363165017,1748605843164,-2539.37,0.00021917,2]
[363165018,1748605843174,-420.0,0.00021917,2]
[363165019,1748605843183,-420.0,0.00021917,2]
[363165020,1748605843193,-420.0,0.00021917,2]
[363165021,1748605843204,-438.94,0.00021917,2]
[363165022,1748605843214,-818.24,0.00021917,2]
[363165023,1748605843224,-5764.0,0.00021917,2]
[363165024,1748605843234,-420.0,0.00021917,2]
[363165025,1748605843244,-420.0,0.00021917,2]
[363165026,1748605843254,-7162.13,0.00021917,2]
[363165027,1748605843264,-499.19,0.00021917,2]
[363165028,1748605843276,-1023.17,0.00021917,2]
[363165029,1748605843286,-420.0,0.00021917,2]
[363165030,1748605843295,-423.99,0.00021917,2]
[363165031,1748605843305,-597.88,0.00021917,2]
[363165032,1748605843315,-455.48,0.00021917,2]
[363165033,1748605843324,-3192.7,0.00021917,2]
[363165034,1748605843334,-420.0,0.00021917,2]
[363165035,1748605843345,-1696.71,0.00021917,2]
[363165036,1748605843355,-420.0,0.00021917,2]
[363165037,1748605843365,-1204.07,0.00021917,2]
[363165038,1748605843374,-421.81,0.00021917,2]
[363165039,1748605843384,-420.0,0.00021917,2]
[363165040,1748605843393,-1055.8,0.00021917,2]
[363165041,1748605843406,-660.44,0.00021917,2]
[363165042,1748605843416,-7497.66,0.00021917,2]
[363165043,1748605843426,-537.4,0.00021917,2]
[363165044,1748605843436,-420.0,0.00021917,2]
[363165045,1748605843446,-1000.0,0.00021917,2]
[363165046,1748605843456,-665.55,0.00021917,2]
[363165047,1748605843465,-1146.05,0.00021917,2]
[363165048,1748605843475,-433.4,0.00021917,2]
[363165049,1748605843484,-420.0,0.00021917,2]
[363165050,1748605843493,-5115.53,0.00021917,2]
[363165051,1748605843502,-492.23,0.00021917,2]
[363165052,1748605843512,-420.0,0.00021917,2]
[363165053,1748605843521,-420.0,0.00021917,2]
[363165054,1748605843530,-420.0,0.00021917,2]
[363165055,1748605843539,-420.0,0.00021917,2]
[363165056,1748605843549,-528.37,0.00021917,2]
[363165057,1748605843558,-512.77,0.00021917,2]
[363165058,1748605843566,-420.0,0.00021917,2]
[363165059,1748605843575,-4938.81,0.00021917,2]
[363165060,1748605843583,-782.04,0.00021917,2]
[363165061,1748605843592,-1682.32,0.00021917,2]
[363165062,1748605843601,-961.79,0.00021917,2]
[363165063,1748605843609,-420.0,0.00021917,2]
[363165064,1748605843618,-420.0,0.00021917,2]
[363165065,1748605843627,-420.0,0.00021917,2]
[363165066,1748605843637,-497.78,0.00021917,2]
[363165067,1748605843646,-563.44,0.00021917,2]
[363165068,1748605843658,-785.45,0.00021917,2]
[363165069,1748605843667,-420.0,0.00021917,2]
[363165070,1748605843677,-420.0,0.00021917,2]
[363165071,1748605843686,-3229.7,0.00021917,2]
[363165072,1748605843695,-420.0,0.00021917,2]
[363165073,1748605843705,-482.13,0.00021917,2]
[363165074,1748605843714,-594.08,0.00021917,2]
[363165075,1748605843723,-420.0,0.00021917,2]
[363165076,1748605843732,-908.54,0.00021917,2]
[363165077,1748605843742,-420.0,0.00021917,2]
[363165078,1748605843751,-82047.63,0.00021917,2]
[363165079,1748605843760,-420.0,0.00021917,2]
[363165080,1748605843770,-420.0,0.00021917,2]
[363165081,1748605843779,-984.23,0.00021917,2]
[363165082,1748605843788,-584.27,0.00021917,2]
[363165083,1748605843798,-1509.37,0.00021917,2]
[363165084,1748605843807,-430.71,0.00021917,2]
[363165085,1748605843818,-420.0,0.00021917,2]
[363165086,1748605843827,-420.0,0.00021917,2]
[363165087,1748605843838,-1254.01,0.00021917,2]
[363165088,1748605843847,-420.0,0.00021917,2]
[363165089,1748605843857,-420.0,0.00021917,2]
[363165090,1748605843866,-1567.14,0.00021917,2]
[363165091,1748605843876,-2030.73,0.00021917,2]
[363165092,1748605843886,-666.87,0.00021917,2]
[363165093,1748605843895,-420.0,0.00021917,2]
[363165094,1748605843907,-420.0,0.00021917,2]
[363165095,1748605843918,-999.41,0.00021917,2]
[363165096,1748605843928,-420.0,0.00021917,2]
[363165097,1748605843937,-618.43,0.00021917,2]
[363165098,1748605843946,-21205.53,0.00021917,2]
[363165099,1748605843956,-4227.82,0.00021917,2]
[363165100,1748605843965,-420.0,0.00021917,2]
[363165101,1748605843975,-420.0,0.00021917,2]
[363165102,1748605843985,-759.02,0.00021917,2]
[363165103,1748605843995,-494.14,0.00021917,2]
[363165104,1748605844005,-2236.29,0.00021917,2]
[363165105,1748605844015,-1179.69,0.00021917,2]
[363165106,1748605844025,-151.0,0.00021918,7]
[363165107,1748605844035,-289.51014766,0.00021918,2]
[363165108,1748605844045,-500.0,0.00021918,2]
[363165109,1748605844055,-500.0,0.00021918,2]
[363165110,1748605844065,-500.0,0.00021918,2]
[363165111,1748605844075,-500.0,0.00021918,2]
[363165112,1748605844085,-500.0,0.00021918,2]
[363165113,1748605844095,-500.0,0.00021918,2]
[363165114,1748605844105,-500.0,0.00021918,2]
[363165115,1748605844116,-604.31916663,0.00021918,2]
[363165116,1748605844126,-489.63676872,0.00021969,6]
[363165117,1748605844136,-215.0738,0.00021994,2]
[363165118,1748605844146,-250.0,0.00021998,2]
[363165119,1748605844158,-460.4,0.00022055,2]
[363165120,1748605844168,-1000.0,0.00022134,7]
[363165121,1748605844177,-1000.0,0.00022134,7]
[363165122,1748605844187,-1000.0,0.00022134,7]
[363165123,1748605844197,-1000.0,0.00022134,7]
[363165124,1748605844207,-1000.0,0.00022134,2]
[363165125,1748605844217,-1000.0,0.00022134,2]
[363165126,1748605844227,-1000.0,0.00022134,2]
[363165127,1748605844237,-500.0,0.00022173,2]
[363165128,1748605844247,-500.0,0.00022173,2]
[363165129,1748605844257,-502.14819447,0.00022173,2]
[363165130,1748605844269,-500.0,0.0002219,2]
[363165131,1748605844279,-266.53242951,0.0002219,2]
[363165132,1748605844289,-153.34474359,0.0002219,2]
[363165133,1748605844299,-151.0,0.00022191,7]
[363165134,1748605844310,-420.0,0.00022191,2]
[363165135,1748605844320,-420.0,0.00022191,2]
[363165136,1748605844330,-420.0,0.00022191,2]
[363165138,1748605844341,-420.0,0.00022191,2]
[363165139,1748605844351,-420.0,0.00022191,2]
[363165141,1748605844362,-420.0,0.00022191,2]
[363165143,1748605844372,-420.0,0.00022191,2]
[363165145,1748605844381,-420.0,0.00022191,2]
[363165148,1748605844391,-420.0,0.00022191,2]
[363165150,1748605844403,-420.0,0.00022191,2]
[363165153,1748605844414,-420.0,0.00022191,2]
[363165156,1748605844423,-420.0,0.00022191,2]
[363165158,1748605844434,-529.58,0.00022191,2]
[363165160,1748605844444,-420.0,0.00022191,2]
[363165162,1748605844454,-420.0,0.00022191,2]
[363165164,1748605844464,-420.0,0.00022191,2]
[363165167,1748605844474,-420.0,0.00022191,2]
[363165170,1748605844484,-480.12953738,0.00022191,2]
[363165173,1748605844493,-420.0,0.00022191,2]
[363165175,1748605844503,-420.0,0.00022191,2]
[363165177,1748605844513,-420.0,0.00022191,2]
[363165178,1748605844523,-420.0,0.00022191,2]
[363165180,1748605844534,-420.0,0.00022191,2]
[363165183,1748605844545,-420.0,0.00022191,2]
[363165184,1748605844555,-567.36,0.00022191,2]
[363165186,1748605844564,-420.0,0.00022191,2]
[363165188,1748605844574,-420.0,0.00022191,2]
[363165190,1748605844584,-420.0,0.00022191,2]
[363165192,1748605844594,-542.97,0.00022191,2]
[363165194,1748605844603,-420.0,0.00022191,2]
[363165196,1748605844613,-420.0,0.00022191,2]
[363165197,1748605844623,-420.0,0.00022191,2]
[363165198,1748605844633,-420.0,0.00022191,2]
[363165199,1748605844642,-420.0,0.00022191,2]
[363165200,1748605844655,-420.0,0.00022191,2]
[363165201,1748605844664,-574.43,0.00022191,2]
[363165202,1748605844674,-420.0,0.00022191,2]
[363165203,1748605844683,-420.0,0.00022191,2]
[363165204,1748605844692,-420.0,0.00022191,2]
[363165205,1748605844701,-420.0,0.00022191,2]
[363165206,1748605844711,-420.0,0.00022191,2]
[363165207,1748605844720,-420.0,0.00022191,2]
[363165208,1748605844729,-420.0,0.00022191,2]
[363165209,1748605844738,-420.0,0.00022191,2]
[363165210,1748605844747,-420.0,0.00022191,2]
[363165211,1748605844756,-420.0,0.00022191,2]
[363165212,1748605844765,-449.48,0.00022191,2]
[363165224,1748605844944,-420.0,0.00022191,2]
[363165227,1748605844965,-420.0,0.00022191,2]
[363165229,1748605844975,-436.68,0.00022191,2]
[363165231,1748605844985,-1007.56,0.00022191,2]
[363165233,1748605844994,-448.1,0.00022191,2]
[363165235,1748605845004,-420.0,0.00022191,2]
[363165237,1748605845014,-420.0,0.00022191,2]
[363165239,1748605845023,-420.0,0.00022191,2]
[363165241,1748605845033,-673.95,0.00022191,2]
[363165243,1748605845042,-420.0,0.00022191,2]
[363165245,1748605845053,-420.0,0.00022191,2]
[363165247,1748605845062,-423.71,0.00022191,2]
[363165249,1748605845072,-420.0,0.00022191,2]
[363165251,1748605845081,-420.0,0.00022191,2]
[363165253,1748605845091,-446.37,0.00022191,2]
[363165255,1748605845100,-420.0,0.00022191,2]
[363165257,1748605845109,-420.0,0.00022191,2]
[363165259,1748605845119,-808.02,0.00022191,2]
[363165261,1748605845128,-420.0,0.00022191,2]
[363165263,1748605845138,-420.0,0.00022191,2]
[363165265,1748605845148,-420.0,0.00022191,2]
[363165267,1748605845158,-531.4,0.00022191,2]
[363165269,1748605845168,-510.45,0.00022191,2]
[363165271,1748605845177,-420.0,0.00022191,2]
[363165273,1748605845187,-420.0,0.00022191,2]
[363165275,1748605845196,-728.34,0.00022191,2]
[363165277,1748605845205,-420.0,0.00022191,2]
[363165279,1748605845215,-504.92,0.00022191,2]
[363165281,1748605845224,-420.0,0.00022191,2]
[363165283,1748605845233,-420.0,0.00022191,2]
[363165285,1748605845243,-420.0,0.00022191,2]
[363165287,1748605845252,-420.0,0.00022191,2]
[363165289,1748605845261,-420.0,0.00022191,2]
[363165291,1748605845274,-420.0,0.00022191,2]
[363165293,1748605845284,-940.5,0.00022191,2]
[363165295,1748605845294,-420.0,0.00022191,2]
[363165297,1748605845304,-425.06,0.00022191,2]
[363165299,1748605845315,-532.57,0.00022191,2]
[363165301,1748605845325,-420.0,0.00022191,2]
[363165303,1748605845334,-881.82,0.00022191,2]
[363165305,1748605845344,-951.97,0.00022191,2]
[363165307,1748605845355,-843.2,0.00022191,2]
[363165309,1748605845364,-420.0,0.00022191,2]
[363165310,1748605845374,-597.12,0.00022191,2]
[363165311,1748605845384,-420.0,0.00022191,2]
[363165312,1748605845393,-420.0,0.00022191,2]
[363165313,1748605845404,-420.0,0.00022191,2]
[363165314,1748605845414,-420.0,0.00022191,2]
[363165315,1748605845424,-420.0,0.00022191,2]
[363165316,1748605845434,-420.0,0.00022191,2]
[363165317,1748605845444,-728.78,0.00022191,2]
[363165318,1748605845453,-420.0,0.00022191,2]
[363165319,1748605845463,-420.0,0.00022191,2]
[363165320,1748605845473,-420.0,0.00022191,2]
[363165321,1748605845482,-1054.49,0.00022191,2]
[363165322,1748605845492,-420.0,0.00022191,2]
[363165323,1748605845502,-420.0,0.00022191,2]
[363165324,1748605845511,-420.0,0.00022191,2]
[363165325,1748605845521,-568.03,0.00022191,2]
[363165326,1748605845531,-420.0,0.00022191,2]
[363165327,1748605845540,-420.0,0.00022191,2]
[363165328,1748605845549,-788.03,0.00022191,2]
[363165329,1748605845559,-420.0,0.00022191,2]
[363165330,1748605845569,-1066.18,0.00022191,2]
[363165331,1748605845578,-420.0,0.00022191,2]
[363165332,1748605845588,-420.0,0.00022191,2]
[363165333,1748605845597,-1077.38,0.00022191,2]
[363165334,1748605845607,-420.0,0.00022191,2]
[363165335,1748605845617,-420.0,0.00022191,2]
[363165336,1748605845626,-425.6,0.00022191,2]
[363165337,1748605845636,-420.0,0.00022191,2]
[363165338,1748605845645,-1270.78,0.00022191,2]
[363165339,1748605845658,-817.51,0.00022191,2]
[363165340,1748605845667,-420.0,0.00022191,2]
[363165341,1748605845677,-420.0,0.00022191,2]
[363165342,1748605845686,-708.32,0.00022191,2]
[363165343,1748605845696,-1537.61,0.00022191,2]
[363165344,1748605845706,-420.0,0.00022191,2]
[363165345,1748605845717,-420.0,0.00022191,2]
[363165346,1748605845726,-420.0,0.00022191,2]
[363165347,1748605845735,-420.0,0.00022191,2]
[363165348,1748605845745,-420.0,0.00022191,2]
[363165349,1748605845754,-420.0,0.00022191,2]
[363165350,1748605845764,-420.0,0.00022191,2]
[363165351,1748605845773,-420.0,0.00022191,2]
[363165352,1748605845782,-420.0,0.00022191,2]
[363165353,1748605845792,-420.0,0.00022191,2]
[363165354,1748605845801,-420.0,0.00022191,2]
[363165355,1748605845810,-420.0,0.00022191,2]
[363165356,1748605845820,-518.46,0.00022191,2]
[363165357,1748605845829,-420.0,0.00022191,2]
[363165358,1748605845839,-545.5,0.00022191,2]
[363165359,1748605845848,-813.25,0.00022191,2]
[363165360,1748605845858,-640.53,0.00022191,2]
[363165361,1748605845867,-420.0,0.00022191,2]
[363165362,1748605845877,-443.73,0.00022191,2]
[363165363,1748605845886,-451.86,0.00022191,2]
[363165364,1748605845895,-420.0,0.00022191,2]
[363165365,1748605845905,-420.0,0.00022191,2]
[363165366,1748605845915,-420.0,0.00022191,2]
[363165367,1748605845925,-420.0,0.00022191,2]
[363165368,1748605845935,-420.0,0.00022191,2]
[363165369,1748605845944,-639.7,0.00022191,2]
[363165370,1748605845953,-448.12,0.00022191,2]
[363165371,1748605845963,-420.0,0.00022191,2]
[363165372,1748605845972,-481.65,0.00022191,2]
[363165373,1748605845982,-597.99,0.00022191,2]
[363165374,1748605845991,-482.97,0.00022191,2]
[363165375,1748605846000,-772.6,0.00022191,2]
[363165376,1748605846010,-530.64,0.00022191,2]
[363165377,1748605846019,-420.0,0.00022191,2]
[363165378,1748605846029,-420.0,0.00022191,2]
[363165379,1748605846038,-420.0,0.00022191,2]
[363165380,1748605846048,-580.34,0.00022191,2]
[363165381,1748605846057,-459.95,0.00022191,2]
[363165382,1748605846066,-420.0,0.00022191,2]
[363165383,1748605846076,-520.83,0.00022191,2]
[363165384,1748605846086,-643.46,0.00022191,2]
[363165385,1748605846096,-420.0,0.00022191,2]
[363165386,1748605846105,-420.0,0.00022191,2]
[363165387,1748605846115,-1080.01,0.00022191,2]
[363165388,1748605846124,-420.0,0.00022191,2]
[363165389,1748605846134,-420.0,0.00022191,2]
[363165391,1748605846143,-420.0,0.00022191,2]
[363165393,1748605846154,-420.0,0.00022191,2]
[363165394,1748605846164,-420.0,0.00022191,2]
[363165395,1748605846174,-420.0,0.00022191,2]
[363165396,1748605846184,-420.0,0.00022191,2]
[363165397,1748605846193,-726.53,0.00022191,2]
[363165398,1748605846203,-534.73,0.00022191,2]
[363165399,1748605846212,-1440.61,0.00022191,2]
[363165400,1748605846222,-420.0,0.00022191,2]
[363165401,1748605846232,-420.0,0.00022191,2]
[363165402,1748605846242,-420.0,0.00022191,2]
[363165403,1748605846251,-420.0,0.00022191,2]
[363165404,1748605846261,-420.0,0.00022191,2]
[363165405,1748605846272,-420.0,0.00022191,2]
[363165406,1748605846282,-546.37,0.00022191,2]
[363165407,1748605846292,-420.0,0.00022191,2]
[363165408,1748605846303,-883.79,0.00022191,2]
[363165409,1748605846314,-623.56,0.00022191,2]
[363165410,1748605846323,-487.77,0.00022191,2]
[363165411,1748605846334,-420.0,0.00022191,2]
[363165412,1748605846344,-420.0,0.00022191,2]
[363165413,1748605846355,-420.0,0.00022191,2]
[363165414,1748605846365,-420.0,0.00022191,2]
[363165415,1748605846374,-420.0,0.00022191,2]
[363165416,1748605846384,-420.0,0.00022191,2]
[363165417,1748605846394,-420.0,0.00022191,2]
[363165418,1748605846404,-420.0,0.00022191,2]
[363165419,1748605846414,-2189.84,0.00022191,2]
[363165420,1748605846423,-420.0,0.00022191,2]
[363165421,1748605846433,-750.52,0.00022191,2]
[363165422,1748605846443,-420.0,0.00022191,2]
[363165423,1748605846453,-535.44,0.00022191,2]
[363165424,1748605846463,-420.0,0.00022191,2]
[363165425,1748605846472,-420.0,0.00022191,2]
[363165426,1748605846482,-420.0,0.00022191,2]
[363165427,1748605846491,-420.0,0.00022191,2]
[363165428,1748605846501,-843.1,0.00022191,2]
[363165429,1748605846511,-420.0,0.00022191,2]
[363165430,1748605846522,-668.42,0.00022191,2]
[363165431,1748605846531,-420.0,0.00022191,2]
[363165432,1748605846541,-821.67,0.00022191,2]
[363165433,1748605846550,-420.0,0.00022191,2]
[363165434,1748605846560,-420.0,0.00022191,2]
[363165435,1748605846570,-420.0,0.00022191,2]
[363165436,1748605846580,-420.0,0.00022191,2]
[363165437,1748605846590,-420.0,0.00022191,2]
[363165438,1748605846600,-420.0,0.00022191,2]
[363165439,1748605846610,-1411.13,0.00022191,2]
[363165440,1748605846619,-420.0,0.00022191,2]
[363165441,1748605846629,-420.0,0.00022191,2]
[363165442,1748605846638,-420.0,0.00022191,2]
[363165443,1748605846648,-420.0,0.00022191,2]
[363165444,1748605846658,-975.17,0.00022191,2]
[363165445,1748605846666,-420.0,0.00022191,2]
[363165446,1748605846676,-1164.67,0.00022191,2]
[363165447,1748605846685,-420.0,0.00022191,2]
[363165448,1748605846695,-420.0,0.00022191,2]
[363165449,1748605846704,-420.0,0.00022191,2]
[363165450,1748605846714,-964.24,0.00022191,2]
[363165451,1748605846724,-562.97,0.00022191,2]
[363165452,1748605846733,-420.0,0.00022191,2]
[363165453,1748605846743,-1756.77,0.00022191,2]
[363165454,1748605846753,-348.63042864,0.00022191,2]
[363165455,1748605846763,-915.09,0.00022191,2]
[363165456,1748605846773,-420.0,0.00022191,2]
[363165457,1748605846782,-916.8,0.00022191,2]
[363165458,1748605846792,-420.0,0.00022191,2]
[363165459,1748605846805,-420.0,0.00022191,2]
[363165460,1748605846814,-420.0,0.00022191,2]
[363165461,1748605846824,-426.39,0.00022191,2]
[363165462,1748605846834,-528.7,0.00022191,2]
[363165463,1748605846844,-420.0,0.00022191,2]
[363165464,1748605846853,-948.94,0.00022191,2]
[363165465,1748605846864,-420.0,0.00022191,2]
[363165466,1748605846873,-420.0,0.00022191,2]
[363165467,1748605846882,-936.49,0.00022191,2]
[363165468,1748605846893,-929.94,0.00022191,2]
[363165469,1748605846902,-420.0,0.00022191,2]
[363165470,1748605846913,-430.81,0.00022191,2]
[363165471,1748605846923,-420.0,0.00022191,2]
[363165472,1748605846932,-420.0,0.00022191,2]
[363165473,1748605846942,-471.97,0.00022191,2]
[363165474,1748605846952,-420.0,0.00022191,2]
[363165475,1748605846961,-1017.69,0.00022191,2]
[363165476,1748605846970,-528.96,0.00022191,2]
[363165477,1748605846980,-873.09,0.00022191,2]
[363165478,1748605846989,-420.0,0.00022191,2]
[363165479,1748605846999,-420.0,0.00022191,2]
[363165480,1748605847008,-420.0,0.00022191,2]
[363165481,1748605847018,-420.0,0.00022191,2]
[363165482,1748605847027,-1161.61,0.00022191,2]
[363165483,1748605847036,-678.18,0.00022191,2]
[363165484,1748605847046,-975.12,0.00022191,2]
[363165485,1748605847055,-420.0,0.00022191,2]
[363165486,1748605847065,-420.0,0.00022191,2]
[363165487,1748605847074,-420.0,0.00022191,2]
[363165488,1748605847084,-1147.25,0.00022191,2]
[363165489,1748605847094,-864.57,0.00022191,2]
[363165490,1748605847103,-921.63,0.00022191,2]
[363165491,1748605847112,-1120.48,0.00022191,2]
[363165492,1748605847123,-664.44,0.00022191,2]
[363165493,1748605847134,-420.0,0.00022191,2]
[363165494,1748605847143,-420.0,0.00022191,2]
[363165495,1748605847152,-420.0,0.00022191,2]
[363165496,1748605847162,-420.0,0.00022191,2]
[363165497,1748605847173,-420.0,0.00022191,2]
[363165498,1748605847189,-927.81,0.00022191,2]
[363165499,1748605847199,-420.0,0.00022191,2]
[363165500,1748605847208,-3912.58,0.00022191,2]
[363165501,1748605847218,-774.57,0.00022191,2]
[363165502,1748605847227,-626.06,0.00022191,2]
[363165503,1748605847237,-420.0,0.00022191,2]
[363165504,1748605847247,-1056.46,0.00022191,2]
[363165505,1748605847256,-933.42,0.00022191,2]
[363165506,1748605847267,-620.96,0.00022191,2]
[363165507,1748605847280,-2116.24,0.00022191,2]
[363165508,1748605847289,-577.62,0.00022191,2]
[363165509,1748605847299,-420.0,0.00022191,2]
[363165510,1748605847309,-420.0,0.00022191,2]
[363165511,1748605847319,-1221.59,0.00022191,2]
[363165512,1748605847329,-420.0,0.00022191,2]
[363165513,1748605847339,-4048.78,0.00022191,2]
[363165514,1748605847409,-459.04,0.00022191,2]
[363165515,1748605847419,-658.11,0.00022191,2]
[363165516,1748605847429,-627.21,0.00022191,2]
[363165517,1748605847439,-420.0,0.00022191,2]
[363165518,1748605847449,-1969.36,0.00022191,2]
[363165519,1748605847458,-420.0,0.00022191,2]
[363165520,1748605847468,-1915.49,0.00022191,2]
[363165521,1748605847477,-420.0,0.00022191,2]
[363165522,1748605847487,-420.0,0.00022191,2]
[363165523,1748605847496,-250.0,0.00022191,2]
[363165524,1748605847505,-856.27,0.00022191,2]
[363165525,1748605847515,-4677.87,0.00022191,2]
[363165526,1748605847524,-1646.48,0.00022191,2]
[363165527,1748605847534,-524.0,0.00022191,2]
[363165528,1748605847544,-420.0,0.00022191,2]
[363165529,1748605847553,-3698.85,0.00022191,2]
[363165530,1748605847562,-615.26,0.00022191,2]
[363165531,1748605847572,-7636.36,0.00022191,2]
[363165532,1748605847583,-420.0,0.00022191,2]
[363165533,1748605847593,-867.03,0.00022191,2]
[363165534,1748605847603,-420.0,0.00022191,2]
[363165535,1748605847613,-1865.89,0.00022191,2]
[363165536,1748605847622,-7173.39,0.00022191,2]
[363165537,1748605847632,-867.4,0.00022191,2]
[363165538,1748605847641,-1236.82,0.00022191,2]